fUSD/lending_fUSD_20241116
["ID","MTS","AMOUNT","RATE_DAILY","PERIOD"]
[342330458,1731732647798,-500.0,9.589e-05,2]
[342330459,1731732647807,-500.0,9.589e-05,2]
[342330460,1731732647816,-500.0,9.589e-05,2]
[342330461,1731732647825,-500.27839647,9.589e-05,2]
[342330462,1731732647834,-369.28163142,9.589e-05,2]
[342330463,1731732647843,-500.0,9.589e-05,2]
[342330464,1731732647853,-500.0,9.589e-05,2]
[342330465,1731732647862,-500.0,9.589e-05,2]
[342330466,1731732647871,-510.03107982,9.589e-05,2]
[342330467,1731732647880,-500.0,9.589e-05,2]
[342330468,1731732647890,-500.0,9.589e-05,2]
[342330469,1731732647899,-500.4803245,9.589e-05,2]
[342330470,1731732647908,-500.0,9.589e-05,2]
[342330471,1731732647918,-500.0,9.589e-05,2]
[342330472,1731732647927,-501.30143215,9.589e-05,2]
[342330473,1731732647936,-500.0,9.589e-05,2]
[342330474,1731732647946,-500.0,9.589e-05,2]
[342330475,1731732647957,-502.30934499,9.589e-05,2]
[342330476,1731732647966,-500.50710743,9.589e-05,2]
[342330477,1731732647975,-500.0,9.589e-05,2]
[342330478,1731732647984,-500.0,9.589e-05,2]
[342330479,1731732647993,-500.0,9.589e-05,2]
[342330480,1731732648003,-500.0,9.589e-05,2]
[342330481,1731732648012,-500.0,9.589e-05,2]
[342330482,1731732648021,-500.0,9.589e-05,2]
[342330483,1731732648031,-185.12327641,9.589e-05,2]
[342330484,1731732648040,-437.29,9.593e-05,2]
[342330485,1731732648050,-400.0,9.6e-05,3]
[342330486,1731732648059,-425.50715165,9.674e-05,2]
[342330487,1731732648069,-400.0,9.7e-05,3]
[342330488,1731732648078,-1081.32772217,9.8e-05,2]
[342330489,1731732648087,-1003.47198083,9.8e-05,2]
[342330490,1731732648096,-1069.91102309,9.8e-05,2]
[342330491,1731732648106,-400.0,9.8e-05,3]
[342330492,1731732648115,-348.98685992,9.896e-05,2]
[342330493,1731732648125,-502.5190869,9.896e-05,2]
[342330494,1731732648139,-500.24703108,9.896e-05,2]
[342330495,1731732648148,-500.9680304,9.896e-05,2]
[342330496,1731732648158,-500.0,9.896e-05,2]
[342330497,1731732648167,-500.0,9.896e-05,2]
[342330498,1731732648178,-500.0,9.896e-05,2]
[342330499,1731732648188,-500.0,9.896e-05,2]
[342330500,1731732648198,-500.0,9.896e-05,2]
[342330501,1731732648210,-500.0,9.896e-05,2]
[342330502,1731732648220,-500.0,9.896e-05,2]
[342330503,1731732648229,-500.0,9.896e-05,2]
[342330504,1731732648239,-188.86833372,9.896e-05,2]
[342330505,1731732648249,-638.96687295,9.896e-05,2]
[342330506,1731732648259,-260.69460391,9.896e-05,2]
[342330507,1731732648269,-369.66603826,9.896e-05,2]
[342330508,1731732648278,-500.0,9.896e-05,2]
[342330509,1731732648288,-500.0,9.896e-05,2]
[342330510,1731732648298,-500.0,9.896e-05,2]
[342330511,1731732648308,-500.0,9.896e-05,2]
[342330512,1731732648319,-466.04700736,9.896e-05,2]
[342330513,1731732648329,-500.0,9.896e-05,2]
[342330514,1731732648340,-500.0,9.896e-05,2]
[342330515,1731732648350,-349.15359095,9.896e-05,2]
[342330516,1731732648359,-289.87613166,9.896e-05,2]
[342330517,1731732648369,-500.0,9.896e-05,2]
[342330518,1731732648379,-500.0,9.896e-05,2]
[342330519,1731732648388,-500.0,9.896e-05,2]
[342330520,1731732648397,-500.0,9.896e-05,2]
[342330521,1731732648407,-498.78882169,9.896e-05,2]
[342330522,1731732648417,-500.0,9.896e-05,2]
[342330523,1731732648426,-500.0,9.896e-05,2]
[342330524,1731732648435,-579.81608876,9.896e-05,2]
[342330525,1731732648445,-500.0,9.896e-05,2]
[342330526,1731732648457,-566.70453397,9.896e-05,2]
[342330527,1731732648467,-1195.0,9.9e-05,3]
[342330528,1731732648476,-1999.908,9.905e-05,2]
[342330529,1731732648486,-629.173,9.905e-05,2]
[342330530,1731732648495,-151.6,9.949e-05,2]
[342330531,1731732648504,-611.5303382,9.95e-05,2]
[342330532,1731732648514,-451.2217934,9.99e-05,2]
[342330533,1731732648523,-500.0,9.996e-05,2]
[342330534,1731732648532,-500.0,9.996e-05,2]
[342330535,1731732648541,-500.0,9.996e-05,2]
[342330536,1731732648551,-500.0,9.996e-05,2]
[342330537,1731732648561,-500.0,9.996e-05,2]
[342330538,1731732648570,-235.59650572,9.996e-05,2]
[342330539,1731732648579,-550.20065658,9.996e-05,2]
[342330540,1731732648588,-500.0,9.996e-05,2]
[342330541,1731732648597,-500.0,9.996e-05,2]
[342330542,1731732648607,-500.0,9.996e-05,2]
[342330543,1731732648616,-260.59563731,9.996e-05,2]
[342330544,1731732648625,-500.0,9.996e-05,2]
[342330545,1731732648635,-500.0,9.996e-05,2]
[342330546,1731732648645,-500.0,9.996e-05,2]
[342330547,1731732648660,-500.0,9.996e-05,2]
[342330548,1731732648669,-500.0,9.996e-05,2]
[342330549,1731732648679,-176.2168911,9.996e-05,2]
[342330550,1731732648689,-568.2470996,9.996e-05,2]
[342330551,1731732648700,-500.0,9.996e-05,2]
[342330552,1731732648709,-448.12659076,9.996e-05,2]
[342330553,1731732648719,-500.0,9.996e-05,2]
[342330554,1731732648730,-500.0,9.996e-05,2]
[342330555,1731732648740,-500.0,9.996e-05,2]
[342330556,1731732648749,-500.0,9.996e-05,2]
[342330557,1731732648759,-500.0,9.996e-05,2]
[342330558,1731732648768,-500.0,9.996e-05,2]
[342330559,1731732648778,-153.01497937,9.997e-05,2]
[342330560,1731732648787,-500.0,9.997e-05,2]
[342330561,1731732648797,-500.0,9.997e-05,2]
[342330562,1731732648806,-500.0,9.997e-05,2]
[342330563,1731732648816,-500.0,9.997e-05,2]
[342330564,1731732648825,-500.0,9.997e-05,2]
[342330565,1731732648835,-500.0,9.997e-05,2]
[342330566,1731732648844,-500.0,9.997e-05,2]
[342330567,1731732648853,-500.0,9.997e-05,2]
[342330568,1731732648863,-500.0,9.997e-05,2]
[342330569,1731732648873,-500.0,9.997e-05,2]
[342330570,1731732648882,-500.0,9.997e-05,2]
[342330571,1731732648891,-500.0,9.997e-05,2]
[342330572,1731732648901,-500.0,9.997e-05,2]
[342330573,1731732648910,-646.25,9.997e-05,2]
[342330574,1731732648920,-500.0,9.997e-05,2]
[342330575,1731732648929,-500.0,9.997e-05,2]
[342330576,1731732648939,-500.0,9.997e-05,2]
[342330577,1731732648949,-500.0,9.997e-05,2]
[342330578,1731732648958,-500.0,9.997e-05,2]
[342330579,1731732648967,-500.0,9.997e-05,2]
[342330580,1731732648977,-500.0,9.997e-05,2]
[342330581,1731732648986,-500.0,9.997e-05,2]
[342330582,1731732648995,-500.0,9.997e-05,2]
[342330583,1731732649004,-500.0,9.997e-05,2]
[342330584,1731732649014,-561.36587574,9.997e-05,2]
[342330585,1731732649023,-500.0,9.997e-05,2]
[342330586,1731732649033,-500.0,9.997e-05,2]
[342330587,1731732649042,-500.0,9.997e-05,2]
[342330588,1731732649052,-500.0,9.997e-05,2]
[342330589,1731732649061,-500.0,9.997e-05,2]
[342330590,1731732649071,-598.05,9.997e-05,2]
[342330591,1731732649080,-500.0,9.997e-05,2]
[342330592,1731732649091,-500.0,9.997e-05,2]
[342330593,1731732649100,-500.0,9.997e-05,2]
[342330594,1731732649110,-500.0,9.997e-05,2]
[342330595,1731732649119,-340.361877,9.997e-05,2]
[342330596,1731732649131,-500.0,9.997e-05,2]
[342330597,1731732649140,-500.0,9.997e-05,2]
[342330598,1731732649150,-1010.36,9.997e-05,2]
[342330599,1731732649159,-242.47342481,9.997e-05,2]
[342330600,1731732649169,-501.36713426,9.997e-05,2]
[342330601,1731732649180,-538.56,9.997e-05,2]
[342330602,1731732649189,-958.32,9.997e-05,2]
[342330603,1731732649201,-500.0,9.997e-05,2]
[342330604,1731732649213,-365.61830515,9.997e-05,2]
[342330605,1731732649223,-695.5,9.997e-05,2]
[342330606,1731732649233,-500.0,9.997e-05,2]
[342330607,1731732649243,-500.0,9.997e-05,2]
[342330608,1731732649253,-746.11,9.997e-05,2]
[342330609,1731732649263,-1000.0,9.997e-05,2]
[342330610,1731732649273,-500.0,9.997e-05,2]
[342330611,1731732649437,-173.22085285,9.997e-05,2]
[342330612,1731732649448,-479.82948164,9.997e-05,2]
[342330613,1731732649459,-500.0,9.997e-05,2]
[342330614,1731732649469,-500.0,9.997e-05,2]
[342330615,1731732649479,-500.0,9.997e-05,2]
[342330616,1731732649489,-500.0,9.997e-05,2]
[342330617,1731732649498,-500.0,9.997e-05,2]
[342330618,1731732649508,-500.0,9.997e-05,2]
[342330619,1731732649519,-500.0,9.997e-05,2]
[342330620,1731732649529,-500.0,9.997e-05,2]
[342330621,1731732649538,-500.0,9.997e-05,2]
[342330622,1731732649548,-500.0,9.997e-05,2]
[342330623,1731732649558,-500.0,9.997e-05,2]
[342330624,1731732649567,-656.33,9.997e-05,2]
[342330625,1731732649577,-601.96746104,9.997e-05,2]
[342330626,1731732649586,-500.0,9.997e-05,2]
[342330627,1731732649596,-500.0,9.997e-05,2]
[342330628,1731732649606,-500.0,9.997e-05,2]
[342330629,1731732649616,-500.0,9.997e-05,2]
[342330630,1731732649625,-175.50357739,9.997e-05,2]
[342330631,1731732649635,-500.0,9.997e-05,2]
[342330632,1731732649645,-500.0,9.997e-05,2]
[342330633,1731732649654,-500.0,9.997e-05,2]
[342330634,1731732649663,-537.15,9.997e-05,2]
[342330635,1731732649672,-467.68109976,9.997e-05,2]
[342330636,1731732649682,-453.96333755,9.997e-05,2]
[342330637,1731732649691,-500.0,9.997e-05,2]
[342330638,1731732649701,-500.0,9.997e-05,2]
[342330639,1731732649710,-500.0,9.997e-05,2]
[342330640,1731732649720,-500.0,9.997e-05,2]
[342330641,1731732649733,-500.0,9.997e-05,2]
[342330642,1731732649744,-500.0,9.997e-05,2]
[342330643,1731732649753,-500.0,9.997e-05,2]
[342330644,1731732649763,-500.0,9.997e-05,2]
[342330645,1731732649773,-500.0,9.997e-05,2]
[342330646,1731732649783,-500.0,9.997e-05,2]
[342330647,1731732649792,-500.0,9.997e-05,2]
[342330648,1731732649802,-500.0,9.997e-05,2]
[342330649,1731732649811,-500.0,9.997e-05,2]
[342330650,1731732649821,-500.0,9.997e-05,2]
[342330651,1731732649830,-501.56704868,9.997e-05,2]
[342330652,1731732649840,-5020.7,9.997e-05,2]
[342330653,1731732649850,-607.25,9.997e-05,2]
[342330654,1731732649859,-500.0,9.997e-05,2]
[342330655,1731732649869,-729.25,9.997e-05,2]
[342330656,1731732649879,-399.89084581,9.997e-05,2]
[342330657,1731732649888,-1675.46,9.997e-05,2]
[342330658,1731732649898,-890.34,9.997e-05,2]
[342330659,1731732649908,-500.0,9.997e-05,2]
[342330660,1731732649917,-500.0,9.997e-05,2]
[342330661,1731732649927,-500.0,9.997e-05,2]
[342330662,1731732649936,-500.0,9.997e-05,2]
[342330663,1731732649946,-1244.41,9.997e-05,2]
[342330664,1731732649957,-500.0,9.997e-05,2]
[342330665,1731732649966,-500.0,9.997e-05,2]
[342330666,1731732649976,-500.0,9.997e-05,2]
[342330667,1731732649985,-500.0,9.997e-05,2]
[342330668,1731732649994,-500.0,9.997e-05,2]
[342330669,1731732650004,-500.0,9.997e-05,2]
[342330670,1731732650013,-500.0,9.997e-05,2]
[342330671,1731732650022,-500.0,9.997e-05,2]
[342330672,1731732650032,-342.30171215,9.997e-05,2]
[342330673,1731732650041,-500.0,9.997e-05,2]
[342330674,1731732650051,-500.0,9.997e-05,2]
[342330675,1731732650061,-500.0,9.997e-05,2]
[342330676,1731732650070,-500.0,9.997e-05,2]
[342330677,1731732650079,-1850.91,9.997e-05,2]
[342330678,1731732650088,-500.0,9.997e-05,2]
[342330679,1731732650097,-500.0,9.997e-05,2]
[342330680,1731732650108,-500.0,9.997e-05,2]
[342330681,1731732650117,-500.0,9.997e-05,2]
[342330682,1731732650126,-500.0,9.997e-05,2]
[342330683,1731732650141,-643.73764722,9.997e-05,2]
[342330684,1731732650151,-500.0,9.997e-05,2]
[342330685,1731732650160,-500.0,9.997e-05,2]
[342330686,1731732650170,-500.0,9.997e-05,2]
[342330687,1731732650180,-500.0,9.997e-05,2]
[342330688,1731732650190,-500.0,9.998e-05,2]
[342330689,1731732650199,-500.0,9.998e-05,2]
[342330690,1731732650212,-500.0,9.998e-05,2]
[342330691,1731732650221,-500.0,9.998e-05,2]
[342330692,1731732650230,-500.0,9.998e-05,2]
[342330693,1731732650241,-628.00970296,9.998e-05,2]
[342330694,1731732650250,-180.17932811,9.998e-05,2]
[342330695,1731732650259,-619.1496556,9.998e-05,2]
[342330696,1731732650269,-500.0,9.998e-05,2]
[342330697,1731732650279,-312.59245039,9.998e-05,2]
[342330698,1731732650288,-527.8,9.998e-05,2]
[342330699,1731732650297,-500.0,9.998e-05,2]
[342330700,1731732650307,-310.24636497,9.998e-05,2]
[342330701,1731732650317,-500.0,9.998e-05,2]
[342330702,1731732650327,-502.03361825,9.998e-05,2]
[342330703,1731732650337,-500.0,9.998e-05,2]
[342330704,1731732650347,-612.67935188,9.998e-05,2]
[342330705,1731732650356,-500.0,9.998e-05,2]
[342330706,1731732650366,-500.0,9.998e-05,2]
[342330707,1731732650375,-500.0,9.998e-05,2]
[342330708,1731732650384,-500.0,9.998e-05,2]
[342330709,1731732650394,-532.30482758,9.998e-05,2]
[342330710,1731732650403,-500.0,9.998e-05,2]
[342330711,1731732650413,-507.50201492,9.998e-05,2]
[342330712,1731732650422,-500.0,9.998e-05,2]
[342330713,1731732650432,-500.0,9.998e-05,2]
[342330714,1731732650441,-500.0,9.998e-05,2]
[342330715,1731732650451,-500.0,9.998e-05,2]
[342330716,1731732650461,-500.0,9.998e-05,2]
[342330717,1731732650470,-500.0,9.998e-05,2]
[342330718,1731732650479,-500.0,9.998e-05,2]
[342330719,1731732650489,-500.0,9.998e-05,2]
[342330720,1731732650499,-500.0,9.998e-05,2]
[342330721,1731732650509,-500.0,9.998e-05,2]
[342330722,1731732650519,-502.37430888,9.998e-05,2]
[342330723,1731732650528,-500.0,9.998e-05,2]
[342330724,1731732650537,-500.5048563,9.998e-05,2]
[342330725,1731732650547,-495.08577228,9.998e-05,2]
[342330726,1731732650556,-646.25,9.998e-05,2]
[342330727,1731732650566,-646.25,9.998e-05,2]
[342330728,1731732650575,-500.0,9.998e-05,2]
[342330729,1731732650585,-518.28242863,9.998e-05,2]
[342330730,1731732650594,-500.0,9.998e-05,2]
[342330731,1731732650604,-500.0,9.998e-05,2]
[342330732,1731732650614,-509.97461871,9.998e-05,2]
[342330733,1731732650624,-500.0,9.998e-05,2]
[342330734,1731732650633,-501.1310373,9.998e-05,2]
[342330735,1731732650642,-500.0,9.998e-05,2]
[342330736,1731732650653,-503.57697426,9.998e-05,2]
[342330737,1731732650663,-500.0,9.998e-05,2]
[342330738,1731732650672,-501.94654456,9.998e-05,2]
[342330739,1731732650682,-500.0,9.998e-05,2]
[342330740,1731732650691,-500.0,9.998e-05,2]
[342330741,1731732650706,-500.0,9.998e-05,2]
[342330742,1731732650719,-558.52296101,9.998e-05,2]
[342330743,1731732650729,-500.0,9.998e-05,2]
[342330744,1731732650739,-436.5841278,9.998e-05,2]
[342330745,1731732650748,-500.0,9.998e-05,2]
[342330746,1731732650758,-500.0,9.998e-05,2]
[342330747,1731732650767,-500.0,9.998e-05,2]
[342330748,1731732650777,-503.56489667,9.998e-05,2]
[342330749,1731732650787,-370.18021124,9.998e-05,2]
[342330750,1731732650796,-500.0,9.998e-05,2]
[342330751,1731732650805,-500.0,9.998e-05,2]
[342330752,1731732650814,-500.0,9.998e-05,2]
[342330753,1731732650823,-283.1045966,9.998e-05,2]
[342330754,1731732650834,-500.0,9.998e-05,2]
[342330755,1731732650844,-500.0,9.998e-05,2]
[342330756,1731732650853,-500.0,9.998e-05,2]
[342330757,1731732650862,-500.0,9.998e-05,2]
[342330758,1731732650873,-500.0,9.998e-05,2]
[342330759,1731732650883,-505.72801811,9.998e-05,2]
[342330760,1731732650892,-598.05,9.998e-05,2]
[342330761,1731732650902,-598.05,9.998e-05,2]
[342330762,1731732650912,-500.0,9.998e-05,2]
[342330763,1731732650922,-500.0,9.998e-05,2]
[342330764,1731732650932,-500.0,9.998e-05,2]
[342330765,1731732650942,-500.0,9.998e-05,2]
[342330766,1731732650955,-500.0,9.998e-05,2]
[342330767,1731732650965,-225.89669728,9.998e-05,2]
[342330768,1731732650975,-500.0,9.998e-05,2]
[342330769,1731732650984,-500.0,9.998e-05,2]
[342330770,1731732650994,-500.0,9.998e-05,2]
[342330771,1731732651003,-583.5455116,9.998e-05,2]
[342330772,1731732651013,-500.0,9.998e-05,2]
[342330773,1731732651022,-310.51895005,9.998e-05,2]
[342330774,1731732651032,-1010.36,9.998e-05,2]
[342330775,1731732651042,-1010.36,9.998e-05,2]
[342330776,1731732651051,-538.56,9.998e-05,2]
[342330777,1731732651060,-538.56,9.998e-05,2]
[342330778,1731732651070,-958.32,9.998e-05,2]
[342330779,1731732651079,-958.32,9.998e-05,2]
[342330780,1731732651088,-500.0,9.998e-05,2]
[342330781,1731732651098,-500.0,9.998e-05,2]
[342330782,1731732651108,-695.5,9.998e-05,2]
[342330783,1731732651118,-695.5,9.998e-05,2]
[342330784,1731732651127,-500.0,9.998e-05,2]
[342330785,1731732651139,-399.27212617,9.998e-05,2]
[342330786,1731732651149,-552.98260358,9.998e-05,2]
[342330787,1731732651158,-746.11,9.998e-05,2]
[342330788,1731732651168,-746.11,9.998e-05,2]
[342330789,1731732651178,-1000.0,9.998e-05,2]
[342330790,1731732651188,-1000.0,9.998e-05,2]
[342330791,1731732651198,-500.0,9.998e-05,2]
[342330792,1731732651212,-500.0,9.998e-05,2]
[342330793,1731732651221,-580.67922471,9.998e-05,2]
[342330794,1731732651231,-500.0,9.998e-05,2]
[342330795,1731732651240,-488.49482337,9.998e-05,2]
[342330796,1731732651250,-500.0,9.998e-05,2]
[342330797,1731732651260,-500.0,9.998e-05,2]
[342330798,1731732651270,-500.0,9.998e-05,2]
[342330799,1731732651279,-500.0,9.998e-05,2]
[342330800,1731732651289,-500.0,9.998e-05,2]
[342330801,1731732651299,-500.0,9.998e-05,2]
[342330802,1731732651309,-500.0,9.998e-05,2]
[342330803,1731732651318,-500.0,9.998e-05,2]
[342330804,1731732651327,-500.0,9.998e-05,2]
[342330805,1731732651337,-500.0,9.998e-05,2]
[342330806,1731732651347,-500.0,9.998e-05,2]
[342330807,1731732651357,-500.0,9.998e-05,2]
[342330808,1731732651366,-500.0,9.998e-05,2]
[342330809,1731732651376,-500.0,9.998e-05,2]
[342330810,1731732651384,-500.0,9.998e-05,2]
[342330811,1731732651394,-500.0,9.998e-05,2]
[342330812,1731732651404,-500.0,9.998e-05,2]
[342330813,1731732651414,-500.0,9.998e-05,2]
[342330814,1731732651423,-500.0,9.998e-05,2]
[342330815,1731732651433,-656.33,9.998e-05,2]
[342330816,1731732651443,-656.33,9.998e-05,2]
[342330817,1731732651455,-500.0,9.998e-05,2]
[342330818,1731732651465,-571.42463854,9.998e-05,2]
[342330819,1731732651475,-500.0,9.998e-05,2]
[342330820,1731732651484,-500.0,9.998e-05,2]
[342330821,1731732651494,-500.0,9.998e-05,2]
[342330822,1731732651503,-500.0,9.998e-05,2]
[342330823,1731732651512,-500.0,9.998e-05,2]
[342330824,1731732651522,-500.0,9.998e-05,2]
[342330825,1731732651796,-500.0,9.998e-05,2]
[342330826,1731732651808,-500.0,9.998e-05,2]
[342330827,1731732651818,-500.0,9.998e-05,2]
[342330828,1731732651827,-500.0,9.998e-05,2]
[342330829,1731732651836,-500.0,9.998e-05,2]
[342330830,1731732651846,-500.0,9.998e-05,2]
[342330831,1731732651855,-537.15,9.998e-05,2]
[342330832,1731732651864,-537.15,9.998e-05,2]
[342330833,1731732651874,-500.0,9.998e-05,2]
[342330834,1731732651883,-500.0,9.998e-05,2]
[342330835,1731732651892,-500.0,9.998e-05,2]
[342330836,1731732651902,-500.0,9.998e-05,2]
[342330837,1731732651911,-500.0,9.998e-05,2]
[342330838,1731732651920,-500.0,9.998e-05,2]
[342330839,1731732651930,-500.0,9.998e-05,2]
[342330840,1731732651940,-500.0,9.998e-05,2]
[342330841,1731732651952,-500.0,9.998e-05,2]
[342330842,1731732651961,-500.0,9.998e-05,2]
[342330843,1731732651970,-500.0,9.998e-05,2]
[342330844,1731732651979,-500.0,9.998e-05,2]
[342330845,1731732651988,-500.0,9.998e-05,2]
[342330846,1731732651997,-500.0,9.998e-05,2]
[342330847,1731732652007,-181.2844791,9.998e-05,2]
[342330848,1731732652016,-500.0,9.998e-05,2]
[342330849,1731732652026,-224.83655539,9.998e-05,2]
[342330850,1731732652035,-500.0,9.998e-05,2]
[342330851,1731732652045,-500.0,9.998e-05,2]
[342330852,1731732652055,-378.63161236,9.998e-05,2]
[342330853,1731732652064,-500.0,9.998e-05,2]
[342330854,1731732652073,-500.0,9.998e-05,2]
[342330855,1731732652083,-500.0,9.998e-05,2]
[342330856,1731732652092,-500.0,9.998e-05,2]
[342330857,1731732652102,-500.0,9.998e-05,2]
[342330858,1731732652111,-390.58232992,9.998e-05,2]
[342330859,1731732652121,-500.0,9.998e-05,2]
[342330860,1731732652132,-382.75429187,9.998e-05,2]
[342330861,1731732652142,-5020.7,9.998e-05,2]
[342330862,1731732652152,-5020.7,9.998e-05,2]
[342330863,1731732652161,-607.25,9.998e-05,2]
[342330864,1731732652171,-607.25,9.998e-05,2]
[342330865,1731732652182,-500.0,9.998e-05,2]
[342330866,1731732652192,-500.0,9.998e-05,2]
[342330867,1731732652202,-729.25,9.998e-05,2]
[342330868,1731732652213,-729.25,9.998e-05,2]
[342330869,1731732652223,-1675.46,9.998e-05,2]
[342330870,1731732652233,-890.34,9.998e-05,2]
[342330871,1731732652242,-1675.46,9.998e-05,2]
[342330872,1731732652251,-500.0,9.998e-05,2]
[342330873,1731732652261,-890.34,9.998e-05,2]
[342330874,1731732652270,-486.56768394,9.998e-05,2]
[342330875,1731732652280,-500.0,9.998e-05,2]
[342330876,1731732652289,-500.0,9.998e-05,2]
[342330877,1731732652299,-500.0,9.998e-05,2]
[342330878,1731732652309,-500.0,9.998e-05,2]
[342330879,1731732652318,-500.0,9.998e-05,2]
[342330880,1731732652327,-500.0,9.998e-05,2]
[342330881,1731732652337,-1244.41,9.998e-05,2]
[342330882,1731732652346,-1244.41,9.998e-05,2]
[342330883,1731732652356,-500.0,9.998e-05,2]
[342330884,1731732652365,-500.0,9.998e-05,2]
[342330885,1731732652375,-500.0,9.998e-05,2]
[342330886,1731732652385,-500.0,9.998e-05,2]
[342330887,1731732652394,-207.11955221,9.998e-05,2]
[342330888,1731732652403,-616.25189955,9.998e-05,2]
[342330889,1731732652412,-500.0,9.998e-05,2]
[342330890,1731732652422,-500.0,9.998e-05,2]
[342330891,1731732652432,-500.0,9.998e-05,2]
[342330892,1731732652441,-500.0,9.998e-05,2]
[342330893,1731732652452,-500.0,9.998e-05,2]
[342330894,1731732652461,-500.0,9.998e-05,2]
[342330895,1731732652471,-500.0,9.998e-05,2]
[342330896,1731732652480,-500.0,9.998e-05,2]
[342330897,1731732652490,-500.0,9.998e-05,2]
[342330898,1731732652499,-500.0,9.998e-05,2]
[342330899,1731732652509,-500.0,9.998e-05,2]
[342330900,1731732652519,-500.0,9.998e-05,2]
[342330901,1731732652529,-152.02628647,9.998e-05,2]
[342330902,1731732652539,-500.0,9.998e-05,2]
[342330903,1731732652549,-500.0,9.998e-05,2]
[342330904,1731732652559,-500.0,9.998e-05,2]
[342330905,1731732652568,-1850.91,9.998e-05,2]
[342330906,1731732652577,-500.0,9.998e-05,2]
[342330907,1731732652587,-1850.91,9.998e-05,2]
[342330908,1731732652596,-500.0,9.998e-05,2]
[342330909,1731732652606,-500.0,9.998e-05,2]
[342330910,1731732652615,-500.0,9.998e-05,2]
[342330911,1731732652624,-500.0,9.998e-05,2]
[342330912,1731732652633,-500.0,9.998e-05,2]
[342330913,1731732652643,-500.0,9.998e-05,2]
[342330914,1731732652652,-360.81091068,9.998e-05,2]
[342330915,1731732652662,-311.81663331,9.998e-05,2]
[342330916,1731732652671,-500.0,9.998e-05,2]
[342330917,1731732652681,-500.0,9.998e-05,2]
[342330918,1731732652690,-500.0,9.998e-05,2]
[342330919,1731732652702,-509.46418881,9.998e-05,2]
[342330920,1731732652712,-500.0,9.998e-05,2]
[342330921,1731732652721,-500.0,9.998e-05,2]
[342330922,1731732652731,-500.0,9.998e-05,2]
[342330923,1731732652740,-500.0,9.998e-05,2]
[342330924,1731732652750,-3919.14509546,9.999e-05,2]
[342330925,1731732652760,-500.0,9.999e-05,2]
[342330926,1731732652769,-500.0,9.999e-05,2]
[342330927,1731732652779,-484.4288489,9.999e-05,2]
[342330928,1731732652789,-500.0,9.999e-05,2]
[342330929,1731732652799,-319.06076297,9.999e-05,2]
[342330930,1731732652808,-500.0,9.999e-05,2]
[342330931,1731732652818,-155.21081925,9.999e-05,2]
[342330932,1731732652828,-500.0,9.999e-05,2]
[342330933,1731732652837,-500.0,9.999e-05,2]
[342330934,1731732652847,-500.0,9.999e-05,2]
[342330935,1731732652856,-500.0,9.999e-05,2]
[342330936,1731732652866,-500.0,9.999e-05,2]
[342330937,1731732652875,-500.0,9.999e-05,2]
[342330938,1731732652883,-500.0,9.999e-05,2]
[342330939,1731732652891,-500.0,9.999e-05,2]
[342330940,1731732652899,-500.0,9.999e-05,2]
[342330941,1731732652908,-500.0,9.999e-05,2]
[342330942,1731732652917,-500.0,9.999e-05,2]
[342330943,1731732652926,-416.09223279,9.999e-05,2]
[342330944,1731732652935,-440.75663508,9.999e-05,2]
[342330945,1731732652944,-161.71200929,9.999e-05,2]
[342330946,1731732652956,-500.0,9.999e-05,2]
[342330947,1731732652965,-500.0,9.999e-05,2]
[342330948,1731732652974,-500.0,9.999e-05,2]
[342330949,1731732652983,-500.0,9.999e-05,2]
[342330950,1731732652993,-500.0,9.999e-05,2]
[342330951,1731732653002,-500.0,9.999e-05,2]
[342330952,1731732653011,-500.0,9.999e-05,2]
[342330953,1731732653020,-348.53047859,9.999e-05,2]
[342330954,1731732653029,-500.0,9.999e-05,2]
[342330955,1731732653039,-500.0,9.999e-05,2]
[342330956,1731732653048,-500.0,9.999e-05,2]
[342330957,1731732653057,-499.3,9.999e-05,2]